bitfinex-derivatives/quotes_SOLF0:USTF0_20250630
["timestamp","ask_amount","ask_price","bid_price","bid_amount"]
[1751284113415,1.80161323,150.77,150.76,6.6315]
[1751284117521,39.2104,150.79,150.77,6.631]
[1751284117815,1.80161323,150.78,150.77,6.631]
[1751284118920,8.43221323,150.78,150.76,6.6313]
[1751284119116,1.80161323,150.77,150.76,6.6313]
[1751284120618,1.80161323,150.77,150.72,6.19690766]
[1751284120921,1.80161323,150.73,150.71,38.83690766]
[1751284121123,1.80161323,150.73,150.72,6.6332]
[1751284121622,6.19593613,150.77,150.7,106.56149631]
[1751284121822,6.19593613,150.78,150.76,6.6315]
[1751284122122,12.82673613,150.78,150.76,6.6315]
[1751284123023,1.80161323,150.77,150.76,6.6315]
[1751284134234,1.80161323,150.77,150.75,6.6317]
[1751284134435,1.80161323,150.76,150.75,6.6317]
[1751284137329,1.80161323,150.76,150.74,6.6321]
[1751284137537,1.80161323,150.75,150.74,6.6321]
[1751284143544,6.6308,150.78,150.76,6.6314]
[1751284143745,1.80161323,150.77,150.76,6.6314]
[1751284143942,8.43261323,150.77,150.76,6.6314]
[1751284144139,8.43261323,150.77,150.75,6.6317]
[1751284144342,1.80161323,150.76,150.75,6.6317]
[1751284158761,1.80161323,150.76,150.74,6.6321]
[1751284159063,1.80161323,150.75,150.74,6.6321]
[1751284169971,6.05281455,150.75,150.74,6.6321]
[1751284180278,6.05367704,150.75,150.74,6.6321]
[1751284189991,6.05372077,150.75,150.74,6.6321]
[1751284190689,6.05381731,150.75,150.74,6.6321]
[1751284191090,1.80251945,150.75,150.74,6.6321]
[1751284191286,6.05377738,150.75,150.74,6.6321]
[1751284192492,6.05387198,150.75,150.74,6.6321]
[1751284197493,1.80261405,150.75,150.74,6.6321]
[1751284197794,6.05415737,150.75,150.74,6.6321]
[1751284198396,4.25154332,150.75,150.74,6.6321]
[1751284199194,34.36261405,150.77,150.76,6.6315]
[1751284199391,38.61356587,150.77,150.76,6.6315]
[1751284200090,38.61296801,150.77,150.76,6.6315]
[1751284204501,45.24396801,150.77,150.75,6.6317]
[1751284204702,6.05296801,150.76,150.75,6.6317]
[1751284204900,4.25095182,150.76,150.75,6.6317]
[1751284205101,6.05296801,150.76,150.75,6.6317]
[1751284205699,4.28152208,150.76,150.74,1.80201619]
[1751284205900,1.80201619,150.79,150.75,7.99892385]
[1751284206204,6.0830224,150.78,150.75,6.19690766]
[1751284206396,4.28100621,150.77,150.76,6.6315]
[1751284206601,1.80201619,150.78,150.75,6.19690766]
[1751284206814,6.0830224,150.78,150.75,6.19690766]
[1751284207012,1.80201619,150.78,150.77,6.631]
[1751284207214,6.0830224,150.78,150.74,8.38100766]
[1751284207512,1.80201619,150.77,150.76,6.6311]
[1751284208115,6.0830224,150.77,150.76,6.6311]
[1751284208308,1.80201619,150.77,150.76,6.6311]
[1751284208510,6.0830224,150.77,150.76,6.6311]
[1751284208705,1.80201619,150.77,150.76,6.6311]
[1751284209014,6.0830224,150.77,150.76,6.6311]
[1751284209212,1.80201619,150.77,150.76,6.6311]
[1751284209913,6.10303854,150.77,150.76,6.6311]
[1751284210207,1.80201619,150.77,150.76,6.6311]
[1751284214619,4.30050553,150.78,150.77,6.631]
[1751284214820,6.10252172,150.78,150.77,6.631]
[1751284217223,1.80201619,150.78,150.77,6.631]
[1751284226835,127.12,150.79,150.78,6.6306]
[1751284227035,133.19383907,150.79,150.78,6.6306]
[1751284228338,131.39182288,150.79,150.78,6.6306]
[1751284228638,133.19383907,150.79,150.78,6.6306]
[1751284228938,133.19399661,150.79,150.78,6.6306]
[1751284233040,127.12,150.79,150.78,6.6306]
[1751284233338,83.64368309,150.82,150.78,6.6306]
[1751284233339,127.08,150.82,150.81,6.6293]
[1751284233541,131.33529569,150.82,150.81,6.6293]
[1751284237941,127.08,150.82,150.81,6.6293]
[1751284244950,131.49493785,150.82,150.81,6.6293]
[1751284248554,133.29695404,150.82,150.81,6.6293]
[1751284252756,133.29811725,150.82,150.81,6.6293]
[1751284255960,131.49610106,150.82,150.81,6.6293]
[1751284258366,131.49610106,150.82,150.81,8.43131619]
[1751284258367,4.41610106,150.82,150.81,8.43131619]
[1751284258661,128.80201619,150.85,150.84,6.628]
[1751284258662,127.0,150.85,150.84,6.628]
[1751284260162,128.80201619,150.85,150.84,6.628]
[1751284264164,127.0,150.85,150.84,6.628]
[1751284264360,1.80201619,150.87,150.83,1.80201619]
[1751284264862,1.80201619,150.86,150.82,1.80201619]
[1751284265464,1.80201619,150.86,150.85,6.6275]
[1751284266064,166.106,150.89,150.86,6.6267]
[1751284266265,1.80201619,150.88,150.84,1.80201619]
[1751284267571,161.28201619,150.89,150.85,1.80201619]
[1751284268671,161.28201619,150.89,150.88,6.6262]
[1751284271267,127.0,150.89,150.88,6.6262]
[1751284271462,113.74127245,150.92,150.87,1.80201619]
[1751284271463,1.80201619,150.91,150.87,1.80201619]
[1751284271868,1.80201619,150.91,150.9,6.625]
[1751284272361,76.90735251,150.92,150.89,1.80201619]
[1751284272568,1.80201619,150.92,150.91,6.6249]
[1751284273165,1.80201619,150.93,150.92,6.6244]
[1751284274271,1.80201619,150.93,150.91,6.6246]
[1751284274470,1.80201619,150.92,150.91,6.6246]
[1751284277871,6.22970048,150.92,150.91,6.6246]
[1751284278074,1.80201619,150.92,150.91,6.6246]
[1751284278272,6.22970048,150.92,150.91,6.6246]
[1751284278574,1.80201619,150.92,150.91,6.6246]
[1751284278775,6.22970048,150.92,150.91,6.6246]
[1751284279076,1.80201619,150.92,150.85,1.80201619]
[1751284279277,1.80201619,150.88,150.84,36.42571619]
[1751284279872,1.80201619,150.88,150.87,6.6266]
[1751284281777,13.86458162,150.9,150.87,6.6266]
[1751284283182,13.86458162,150.9,150.84,34.6237]
[1751284285179,7.23918162,150.9,150.88,6.6259]
[1751284290384,13.86458162,150.9,150.88,6.6259]
[1751284290579,7.23918162,150.9,150.87,6.6265]
[1751284290785,2.81162427,150.9,150.87,6.6265]
[1751284290985,6.626,150.89,150.87,6.6265]
[1751284291280,2.81162427,150.88,150.8,12.93380766]
[1751284291483,2.81162427,150.86,150.8,39.1769]
[1751284291684,9.43872427,150.86,150.8,39.1769]
[1751284291883,9.43872427,150.86,150.8,36.9893]
[1751284292383,6.6276,150.85,150.83,6.6282]
[1751284295593,6.6276,150.85,150.82,6.6286]
[1751284297493,6.6276,150.85,150.83,6.6284]
[1751284298290,6.628,150.84,150.82,6.6286]
[1751284298596,2.81162427,150.84,150.78,32.42]
[1751284299594,6.6284,150.83,150.81,6.6291]
[1751284301189,9.43982427,150.84,150.81,6.6291]
[1751284302994,2.81162427,150.87,150.78,35.23162427]
[1751284303194,2.81162427,150.87,150.78,41.42853193]
[1751284303395,6.6273,150.86,150.84,6.6279]
[1751284304899,6.6275,150.85,150.83,6.6282]
[1751284305092,2.81162427,150.87,150.78,35.23162427]
[1751284305496,6.6274,150.86,150.83,6.6281]
[1751284307198,6.6275,150.85,150.83,6.6281]
[1751284310198,9.43912427,150.85,150.83,6.6281]
[1751284312211,6.628,150.84,150.82,6.6286]
[1751284313601,9.43932427,150.85,150.83,6.6284]
[1751284317310,6.6273,150.86,150.84,6.6277]
[1751284318512,6.6273,150.86,150.85,6.6275]
[1751284318811,9.43842427,150.87,150.85,6.6275]
[1751284319011,2.81162427,150.87,150.79,13.2602]
[1751284319407,9.43822427,150.87,150.79,13.2602]
[1751284320311,2.81162427,150.87,150.8,2.81162427]
[1751284321013,9.43832427,150.87,150.85,6.6272]
[1751284322507,6.6273,150.86,150.79,13.2602]
[1751284322719,2.81162427,150.85,150.79,13.2602]
[1751284323014,2.81162427,150.85,150.84,6.6279]
[1751284324518,2.81162427,150.85,150.78,38.61690766]
[1751284325317,2.81162427,150.85,150.78,32.42]
[1751284325615,6.6283,150.84,150.81,6.629]
[1751284326217,6.6285,150.83,150.81,6.629]
[1751284328121,6.6282,150.84,150.82,6.6288]
[1751284333919,1.80030501,150.85,150.84,6.6279]
[1751284335823,48.0562646,150.86,150.84,6.6279]
[1751284340929,6.6275,150.85,150.84,6.6279]
[1751284341234,6.6275,150.85,150.83,6.6282]
[1751284341732,6.6275,150.85,150.84,6.6279]
[1751284342533,48.0562646,150.86,150.84,6.6279]
[1751284344138,6.6275,150.85,150.83,6.6281]
[1751284345333,2.81302847,150.84,150.79,6.19690766]
[1751284345535,2.81302847,150.82,150.77,6.19690766]
[1751284345837,6.6295,150.81,150.76,13.13310766]
[1751284346133,6.6295,150.81,150.79,6.6299]
[1751284347037,9.44212847,150.82,150.8,6.6297]
[1751284357758,1.80136082,150.81,150.8,6.6297]
[1751284358856,8.43086082,150.81,150.76,8.73756082]
[1751284359055,1.80136082,150.79,150.76,8.73756082]
[1751284359355,1.80136082,150.79,150.78,6.6306]
[1751284359554,1.80136082,150.8,150.78,6.6306]
[1751284360059,8.43106082,150.8,150.78,6.6306]
[1751284361454,1.80136082,150.79,150.78,6.6306]
[1751284364460,1.80136082,150.8,150.78,6.6306]
[1751284365259,1.80136082,150.8,150.79,6.6301]
[1751284378867,6.6295,150.81,150.79,6.6301]
[1751284379060,1.80136082,150.8,150.79,6.6301]
[1751284381470,1.80136082,150.8,150.76,8.73756082]
[1751284381471,8.43106082,150.8,150.78,6.6304]
[1751284381766,1.80136082,150.79,150.78,6.6304]
[1751284384764,1.80136082,150.79,150.74,32.42]
[1751284384965,1.80136082,150.76,150.74,32.42]
[1751284385771,1.80136082,150.76,150.75,6.6319]
[1751284388571,1.80136082,150.77,150.76,6.6315]
[1751284393979,6.6304,150.79,150.77,6.6307]
[1751284394176,1.80136082,150.78,150.77,6.6307]
[1751284401293,6.19593613,150.81,150.74,34.22136082]
[1751284401591,1.80136082,150.84,150.79,1.80136082]
[1751284401896,34.20136082,150.85,150.83,6.628]
[1751284406798,1.80136082,150.84,150.78,45.55450766]
[1751284406993,1.80136082,150.82,150.78,39.3576]
[1751284407294,1.80136082,150.81,150.78,39.3576]
[1751284408191,32.4,150.85,150.8,6.6293]
[1751284408396,1.80136082,150.81,150.76,32.4]
[1751284408595,1.80136082,150.78,150.76,32.4]
[1751284408797,1.80136082,150.78,150.74,12.54086848]
[1751284409295,1.80136082,150.78,150.77,6.631]
[1751284409896,9.44491615,150.8,150.77,6.631]
[1751284410796,6.6302,150.79,150.77,6.631]
[1751284411198,2.81501615,150.78,150.72,8.50320766]
[1751284411501,2.81501615,150.75,150.72,2.3063]
[1751284411693,2.81501615,150.75,150.73,6.6325]
[1751284412399,2.81501615,150.75,150.7,40.87170766]
[1751284412999,2.81501615,150.75,150.74,6.6323]
[1751284427815,9.44711615,150.75,150.73,6.6325]
[1751284428320,2.81501615,150.75,150.73,6.6325]
[1751284428920,9.44691615,150.75,150.73,6.6325]
[1751284431819,1.80299325,150.74,150.73,6.6325]
[1751284432418,1.80299325,150.74,150.67,6.19690766]
[1751284432722,1.80299325,150.7,150.65,7.99990091]
[1751284433020,1.80299325,150.7,150.69,6.6345]
[1751284435419,34.20299325,150.72,150.71,6.6337]
[1751284435821,32.4,150.72,150.71,6.6337]
[1751284441522,41.85065132,150.72,150.7,6.6339]
[1751284441722,35.21745132,150.72,150.64,9.50695132]
[1751284441916,35.21745132,150.72,150.64,15.70385898]
[1751284442424,2.81745132,150.72,150.64,15.70385898]
[1751284442627,2.81745132,150.72,150.71,6.6337]
[1751284446928,9.45065132,150.72,150.7,6.6341]
[1751284447227,2.81745132,150.72,150.64,6.6895]
[1751284447927,6.6339,150.71,150.64,6.6895]
[1751284448324,6.6339,150.71,150.68,6.6348]
[1751284449126,9.45185132,150.7,150.67,6.6352]
[1751284449818,6.6347,150.69,150.67,6.6352]
[1751284451125,9.45175132,150.7,150.67,6.6352]
[1751284453431,4.57522303,150.69,150.67,6.6352]
[1751284453730,4.57522303,150.69,150.68,6.635]
[1751284455230,11.20972303,150.69,150.67,6.6353]
[1751284455530,4.57522303,150.68,150.67,6.6353]
[1751284457933,6.37930203,150.68,150.67,6.6353]
[1751284459830,13.01450203,150.68,150.63,38.59690766]
[1751284460033,6.37930203,150.67,150.63,1.804079]
[1751284460333,4.57522303,150.66,150.63,1.804079]
[1751284460534,1.804079,150.67,150.66,6.6358]
[1751284460737,6.38162077,150.67,150.66,6.6358]
[1751284462934,6.38162077,150.67,150.65,6.6361]
[1751284463337,13.01712077,150.67,150.65,6.6361]
[1751284463640,8.439579,150.67,150.65,6.6361]
[1751284463843,13.01712077,150.67,150.65,6.6361]
[1751284464030,8.439579,150.67,150.65,6.6361]
[1751284464233,13.01712077,150.67,150.65,6.6361]
[1751284464430,8.439579,150.67,150.65,6.6361]
[1751284464633,13.01712077,150.67,150.65,6.6361]
[1751284464935,8.439579,150.67,150.65,6.6361]
[1751284465140,13.00468682,150.67,150.65,6.6361]
[1751284465436,8.439579,150.67,150.65,6.6361]
[1751284465639,13.00468682,150.67,150.65,6.6361]
[1751284465937,8.439579,150.67,150.65,6.6361]
[1751284466128,13.00468682,150.67,150.65,6.6361]
[1751284466333,8.439579,150.67,150.65,6.6361]
[1751284470038,4.4816,150.74,150.66,1.804079]
[1751284470232,4.4816,150.74,150.67,1.804079]
[1751284470233,1.804079,150.71,150.67,1.804079]
[1751284470432,1.804079,150.71,150.65,6.19690766]
[1751284470433,4.56707005,150.7,150.66,1.804079]
[1751284470633,4.56707005,150.69,150.66,1.804079]
[1751284470833,4.56707005,150.68,150.67,6.6354]
[1751284471641,6.37114905,150.7,150.68,6.6347]
[1751284471835,4.56707005,150.69,150.68,6.6347]
[1751284474240,4.56707005,150.69,150.68,6.635]
[1751284474548,6.37114905,150.69,150.64,45.49900766]
[1751284474843,1.804079,150.67,150.64,45.49900766]
[1751284475635,1.804079,150.67,150.66,6.6355]
[1751284475839,4.59321067,150.67,150.66,6.6355]
[1751284476039,1.804079,150.67,150.66,6.6355]
[1751284476240,6.35928113,150.67,150.66,6.6355]
[1751284477145,6.35928113,150.67,150.65,6.636]
[1751284477343,6.6352,150.68,150.63,6.19690766]
[1751284477344,12.99718832,150.66,150.63,6.19690766]
[1751284477546,6.36098832,150.65,150.62,6.19690766]
[1751284477746,1.804079,150.65,150.62,6.19690766]
[1751284478051,1.804079,150.65,150.61,38.61690766]
[1751284478344,1.804079,150.65,150.64,6.6367]
[1751284479145,6.36120513,150.65,150.64,6.6367]
[1751284479444,4.55712613,150.65,150.64,6.6367]
[1751284486156,39.0553,150.68,150.65,6.6361]
[1751284486460,4.52146338,150.67,150.65,6.6361]
[1751284486655,4.52146338,150.66,150.65,6.6361]
[1751284491660,4.52146338,150.66,150.64,6.6366]
[1751284491963,4.52391832,150.65,150.64,6.6366]
[1751284494067,11.16041832,150.65,150.63,6.6369]
[1751284494365,6.6365,150.65,150.63,6.6369]
[1751284494968,4.52524152,150.64,150.63,6.6369]
[1751284497761,11.16194152,150.64,150.62,6.6374]
[1751284497967,6.6367,150.64,150.62,6.6374]
[1751284498263,6.6374,150.63,150.61,6.19690766]
[1751284498464,2.81964477,150.62,150.6,6.19690766]
[1751284498668,2.81964477,150.62,150.55,32.46]
[1751284498863,4.50339612,150.61,150.6,6.6385]
[1751284500163,41.91654477,150.64,150.61,6.6379]
[1751284500769,4.5024371,150.63,150.61,6.6379]
[1751284501774,1.80552857,150.62,150.61,6.6379]
[1751284501974,1.80552857,150.62,150.58,6.20536269]
[1751284502174,1.80552857,150.6,150.58,6.20536269]
[1751284503062,1.80552857,150.6,150.59,6.6385]
[1751284503267,1.80552857,150.6,150.55,6.20536269]
[1751284503472,127.26,150.64,150.5,13.2856]
[1751284503473,4.50258275,150.59,150.54,6.20536269]
[1751284503776,1.80552857,150.56,150.52,1.80552857]
[1751284504272,1.80552857,150.55,150.52,6.6419]
[1751284504474,1.80552857,150.55,150.49,6.20536269]
[1751284504475,1.80552857,150.53,150.49,1.80552857]
[1751284504669,1.80552857,150.53,150.52,6.642]
[1751284505271,6.6405,150.56,150.53,6.6414]
[1751284505476,1.80552857,150.54,150.5,1.80552857]
[1751284505772,13.93913896,150.56,150.52,6.6418]
[1751284505972,4.47461919,150.55,150.48,48.30198246]
[1751284506173,4.47461919,150.55,150.48,39.2726]
[1751284506366,2.82401977,150.54,150.48,39.2726]
[1751284506569,35.30401977,150.54,150.48,39.2726]
[1751284507974,35.30401977,150.54,150.48,42.09661977]
[1751284508173,35.30401977,150.54,150.52,6.6417]
[1751284508571,35.30401977,150.54,150.48,42.09661977]
[1751284508764,32.48,150.54,150.48,42.09661977]
[1751284509271,32.48,150.54,150.53,6.6416]
[1751284509866,35.30401977,150.54,150.51,6.6424]
[1751284510077,2.82401977,150.52,150.51,6.6424]
[1751284510265,35.30401977,150.54,150.48,39.2726]
[1751284510668,35.30401977,150.54,150.52,6.6417]
[1751284510977,6.6407,150.55,150.52,6.6417]
[1751284511178,2.82401977,150.53,150.52,6.6417]
[1751284512677,2.82401977,150.53,150.51,6.6423]
[1751284512868,2.82401977,150.53,150.48,39.2726]
[1751284513373,9.46561977,150.53,150.5,6.6427]
[1751284514468,2.1555,150.6,150.48,32.48]
[1751284514671,2.82401977,150.55,150.48,32.48]
[1751284514973,42.50471977,150.55,150.48,32.48]
[1751284515372,35.86401977,150.55,150.48,32.48]
[1751284515569,2.82401977,150.57,150.49,2.82401977]
[1751284515880,2.82401977,150.57,150.5,2.3008]
[1751284516069,2.82401977,150.57,150.55,6.6403]
[1751284517078,2.82401977,150.57,150.56,6.6402]
[1751284518078,42.50311977,150.59,150.57,6.6398]
[1751284518279,42.50311977,150.59,150.51,7.22951977]
[1751284518476,42.50311977,150.59,150.56,6.64]
[1751284518871,9.46311977,150.59,150.56,6.64]
[1751284519072,42.50311977,150.59,150.56,6.64]
[1751284519579,2.82401977,150.57,150.51,4.4055]
[1751284520575,2.82401977,150.57,150.55,6.6407]
[1751284522068,9.46391977,150.57,150.54,6.6409]
[1751284524383,6.6404,150.56,150.53,6.6414]
[1751284524577,2.82401977,150.55,150.51,4.4055]
[1751284525578,2.82401977,150.55,150.54,6.6411]
[1751284526985,2.82401977,150.55,150.51,4.4055]
[1751284527679,2.82401977,150.53,150.51,4.4055]
[1751284527885,2.82401977,150.53,150.5,2.3008]
[1751284528283,2.82401977,150.53,150.51,6.6422]
[1751284528479,2.82401977,150.53,150.48,32.48]
[1751284529088,2.82401977,150.53,150.51,6.6424]
[1751284529282,2.82401977,150.52,150.51,6.6424]
[1751284532087,2.82401977,150.52,150.5,6.6427]
[1751284532483,9.46611977,150.52,150.49,6.643]
[1751284533289,2.82401977,150.5,150.48,6.6437]
[1751284533483,2.82401977,150.5,150.46,6.7755]
[1751284534383,2.82401977,150.5,150.49,6.6433]
[1751284534789,41.95456237,150.54,150.51,6.6424]
[1751284534991,2.82401977,150.52,150.51,6.6424]
[1751284535194,2.82401977,150.52,150.46,6.7755]
[1751284535580,2.82401977,150.52,150.5,6.6427]
[1751284537290,9.46601977,150.52,150.5,6.6427]
[1751284537687,2.82401977,150.52,150.5,6.6427]
[1751284540688,33.04,150.53,150.46,6.7755]
[1751284540990,2.82401977,150.52,150.46,6.7755]
[1751284542185,2.82401977,150.52,150.5,6.6427]
[1751284542390,9.46621977,150.52,150.46,6.7755]
[1751284542690,2.82401977,150.5,150.46,6.7755]
[1751284542886,2.82401977,150.5,150.49,6.6429]
[1751284543792,2.82401977,150.5,150.48,6.6435]
[1751284544586,2.82401977,150.5,150.49,6.6433]
[1751284545193,7.31626442,150.52,150.5,6.6425]
[1751284545590,4.49224465,150.52,150.46,6.7755]
[1751284545788,2.82401977,150.53,150.52,6.642]
[1751284545985,9.46561977,150.53,150.47,6.20536269]
[1751284546188,9.46561977,150.53,150.5,6.6424]
[1751284546789,9.46561977,150.53,150.48,6.20536269]
[1751284547591,9.46561977,150.53,150.5,6.6426]
[1751284548796,13.97567794,150.53,150.48,12.84906269]
[1751284548992,6.6421,150.52,150.48,12.84906269]
[1751284549197,6.6421,150.52,150.49,6.20536269]
[1751284549396,6.6421,150.52,150.48,12.84906269]
[1751284549696,6.6421,150.52,150.49,6.20536269]
[1751284549892,6.6421,150.52,150.48,12.84906269]
[1751284550094,6.6421,150.52,150.49,6.20536269]
[1751284550293,7.33407794,150.53,150.48,12.84906269]
[1751284550894,6.6424,150.52,150.48,12.84906269]
[1751284551093,7.34923168,150.53,150.48,12.84906269]
[1751284551397,6.6428,150.51,150.48,12.84906269]
[1751284557506,2.82401977,150.5,150.48,6.20536269]
[1751284557704,2.82401977,150.5,150.46,10.60276269]
[1751284558403,2.82401977,150.5,150.44,8.27381692]
[1751284558404,2.82401977,150.48,150.44,6.20536269]
[1751284558602,9.46881977,150.46,150.43,6.6459]
[1751284558802,13.99403168,150.46,150.43,6.6459]
[1751284558998,9.46881977,150.46,150.43,6.6459]
[1751284559399,9.46881977,150.46,150.44,6.6455]
[1751284559594,2.82401977,150.45,150.44,6.6455]
[1751284560305,2.82401977,150.45,150.41,6.20536269]
[1751284561109,9.46921977,150.45,150.42,6.6461]
[1751284561407,2.82401977,150.45,150.4,39.26536269]
[1751284561700,2.82401977,150.43,150.4,39.26536269]
[1751284561905,2.82401977,150.43,150.4,33.06]
[1751284562806,2.82401977,150.43,150.41,6.6466]
[1751284563803,2.82401977,150.43,150.39,2.2628]
[1751284564009,33.06,150.46,150.37,33.06]
[1751284564010,2.82401977,150.41,150.37,33.06]
[1751284564299,2.82401977,150.39,150.37,6.6482]
[1751284564507,2.82401977,150.39,150.34,41.48466269]
[1751284564897,9.47201977,150.39,150.36,6.6488]
[1751284565101,2.2796,150.45,150.34,35.2793]
[1751284565302,2.82401977,150.42,150.35,6.20536269]
[1751284565807,9.47051977,150.42,150.39,6.6474]
[1751284566305,2.82401977,150.4,150.38,6.648]
[1751284566503,2.82401977,150.4,150.34,35.2793]
[1751284567302,9.47131977,150.4,150.34,35.2793]
[1751284567502,2.82401977,150.4,150.34,35.2793]
[1751284567803,2.82401977,150.38,150.34,35.2793]
[1751284567998,2.82401977,150.38,150.32,8.41106269]
[1751284567999,2.82401977,150.36,150.32,2.2057]
[1751284568200,2.82401977,150.36,150.35,6.6493]
[1751284568709,2.82401977,150.38,150.32,2.2057]
[1751284568907,2.82401977,150.38,150.37,6.6485]
[1751284570009,2.82401977,150.38,150.32,2.2057]
[1751284570508,33.06,150.4,150.32,2.2057]
[1751284570707,2.82401977,150.38,150.32,2.2057]
[1751284574308,2.82401977,150.35,150.29,2.3715]
[1751284575115,39.8691,150.36,150.33,6.6504]
[1751284575312,2.82401977,150.34,150.33,6.6504]
[1751284575815,33.22,150.36,150.34,6.6499]
[1751284576008,2.82401977,150.35,150.34,6.6499]
[1751284576407,33.22,150.36,150.29,2.3715]
[1751284576715,36.04401977,150.36,150.29,2.3715]
[1751284577509,36.04401977,150.36,150.34,6.65]
[1751284577711,36.04401977,150.36,150.29,2.3715]
[1751284578017,2.82401977,150.38,150.3,2.82401977]
[1751284578421,2.82401977,150.38,150.37,6.6486]
[1751284578718,33.22,150.39,150.32,2.82401977]
[1751284578921,33.22,150.39,150.37,6.6483]
[1751284579121,33.22,150.39,150.32,5.02251977]
[1751284579520,33.22,150.39,150.37,6.6483]
[1751284579714,6.6466,150.42,150.32,5.02251977]
[1751284579915,2.82401977,150.4,150.32,5.02251977]
[1751284580215,2.82401977,150.4,150.37,6.6483]
[1751284581317,2.82401977,150.4,150.38,6.6481]
[1751284582314,2.82401977,150.4,150.37,6.6484]
[1751284583517,2.82401977,150.4,150.38,6.6481]
[1751284589420,2.82401977,150.4,150.39,6.6477]
[1751284592920,2.82401977,150.4,150.38,6.648]
[1751284593121,2.82401977,150.4,150.33,5.07091977]
[1751284593925,33.22,150.41,150.33,5.07091977]
[1751284594231,33.22,150.41,150.34,2.2272]
[1751284594418,2.82401977,150.4,150.34,2.2272]
[1751284596721,2.82401977,150.4,150.39,6.6477]
[1751284600923,36.04401977,150.41,150.39,6.6477]
[1751284603122,40.44606096,150.41,150.39,6.6477]
[1751284604028,40.44606096,150.41,150.4,6.6473]
[1751284604528,40.44606096,150.41,150.35,6.20536269]
[1751284605117,40.44606096,150.41,150.34,2.2272]
[1751284605118,40.44606096,150.41,150.39,6.6475]
[1751284607225,40.44606096,150.41,150.36,6.20536269]
[1751284607828,1.81078845,150.39,150.36,6.20536269]
[1751284608430,1.81078845,150.39,150.38,6.6482]
[1751284609332,128.78,150.41,150.35,1.81078845]
[1751284609333,130.59078845,150.41,150.4,6.6473]
[1751284609632,135.00075781,150.41,150.4,6.6473]
[1751284611330,130.59078845,150.41,150.4,6.6473]
[1751284612931,13.431,150.44,150.41,6.6467]
[1751284613121,1.81078845,150.42,150.38,1.81078845]
[1751284613326,130.47078845,150.42,150.38,8.01615114]
[1751284614532,130.47078845,150.42,150.41,6.6469]
[1751284627740,128.66,150.42,150.41,6.6469]
[1751284627936,130.47078845,150.42,150.41,6.6469]
[1751284629232,134.91134619,150.42,150.4,6.6471]
[1751284629534,1.81078845,150.41,150.4,6.6471]
[1751284629736,128.66,150.42,150.41,6.6469]
[1751284629935,134.91156649,150.42,150.41,6.6469]
[1751284632633,134.91156649,150.42,150.4,6.6472]
[1751284632838,1.81078845,150.41,150.4,6.6472]
[1751284636638,2.2696,150.47,150.39,8.01615114]
[1751284636836,1.81078845,150.44,150.4,8.01615114]
[1751284637037,4.44254332,150.43,150.4,8.01615114]
[1751284637231,1.81078845,150.44,150.43,6.646]
[1751284637537,6.25305356,150.44,150.43,6.646]
[1751284638140,6.25305356,150.44,150.42,6.6462]
[1751284638340,6.25305356,150.43,150.42,6.6462]
[1751284638538,1.81078845,150.43,150.42,6.6462]
[1751284638940,6.25305356,150.43,150.42,6.6462]
[1751284639141,1.81078845,150.43,150.42,6.6462]
[1751284639637,6.25305356,150.43,150.42,6.6462]
[1751284639840,1.81078845,150.43,150.42,6.6462]
[1751284640343,6.25305356,150.43,150.42,6.6462]
[1751284640539,1.81078845,150.43,150.42,6.6462]
[1751284641039,6.26529495,150.43,150.42,6.6462]
[1751284641242,1.81078845,150.43,150.42,6.6462]
[1751284641739,6.26529495,150.43,150.42,6.6462]
[1751284641939,1.81078845,150.43,150.42,6.6462]
[1751284642142,6.26529495,150.44,150.43,6.646]
[1751284644644,4.4545065,150.44,150.43,6.646]
[1751284644840,6.26529495,150.44,150.43,6.646]
[1751284651152,1.81078845,150.44,150.43,6.646]
[1751284656560,167.9849,150.46,150.41,6.20536269]
[1751284656762,1.81078845,150.43,150.41,6.20536269]
[1751284656961,1.81078845,150.43,150.42,6.6464]
[1751284659863,161.34,150.46,150.41,6.20536269]
[1751284660059,1.81078845,150.45,150.42,8.01615114]
[1751284660264,129.71078845,150.46,150.43,6.20536269]
[1751284661266,1.81078845,150.45,150.43,6.20536269]
[1751284661667,1.81078845,150.45,150.44,6.6451]